[Event "FIDE World School-ch O-17 2025"]
[Site "Vrnjacka Banja"]
[Date "2025.03.22"]
[Round "3.4"]
[White "Orgilon Batsaikhan"]
[Black "Milanovic, Marko"]
[Result "1/2-1/2"]
[Annotator "TA"]
[ECO "C77"]
[WhiteElo "2024"]
[BlackElo "2271"]
[PlyCount "96"]
[EventDate "2025.03.19"]
[EventType "swiss"]
[EventCountry "SRB"]
[SourceTitle "playchess.com"]
[Source "ChessBase"]
[SourceQuality "1"]
[TimeControl "5400+30"]

{[%evp 11,96,17,17,-16,0,-18,5,-10,16,16,21,-14,-6,-39,-29,-45,0,-45,-42,-43,-41,-50,15,-40,-27,-32,42,42,42,42,44,44,44,44,44,44,44,44,44,44,69,64,71,64,64,64,64,64,64,64,72,64,64,64,64,64,64,64,64,64,64,64,64,64,64,64,64,64,64,64,64,64,66,66,68,64,64,64,64,45,64,0,0,0,0,0,0]} 1. e4 {[%emt 0:00:03]} e5 {[%emt 0:02:15]} 2. Nf3 {[%emt 0:00:06]} Nc6 {[%emt 0:00:07]} 3. Bb5 {[%emt 0:00:05]} a6 {[%emt 0:00:13]} 4. Ba4 {[%emt 0:00:06]} Nf6 {[%emt 0:00:05]} 5. Nc3 {[%emt 0:00:04]} b5 {[%emt 0:02:08]} 6. Bb3 {[%emt 0:00:06]} Be7 {[%emt 0:01:55]} 7. Nd5 {[%emt 0:00:06] C77: Ruy Lopez: 3...a6 4 Ba4 Nf6, unusual lines.} O-O {[%emt 0:05:11]} (7... Nxe4 $5 8. d4 exd4 $11) 8. a4 {[%emt 0:01:19]} b4 {[%emt 0:06:08]} 9. d3 {[%emt 0:00:17]} Rb8 {[%emt 0:07:02]} 10. O-O {[%emt 0:03:55]} d6 {[%emt 0:02:06]} 11. Be3 {[%emt 0:05:07]} Na5 $146 {[%emt 0:07:06]} (11... Be6 12. Nxe7+ Nxe7 13. Bxe6 fxe6 14. Bg5 Ng6 15. Re1 h6 16. Be3 c5 17. c3 bxc3 18. bxc3 {0-1 Romero Gamez,F (1629)-Padilla Carmona,F (1900) Barcelona La Lira Spring op 3rd 2010 (6.15)}) 12. Nxf6+ {[%emt 0:04:12]} Bxf6 {[%emt 0:00:46]} 13. Ba2 {[%emt 0:00:06]} c5 {[%emt 0:04:52][%cal Ob4b3]} 14. Bc4 {[%emt 0:13:03]} Nxc4 {[%emt 0:12:48]} 15. dxc4 {[%emt 0:00:22]} Be7 {[%emt 0:02:40]} 16. Nd2 {[%emt 0:15:20]} g5 {[%emt 0:07:57]} ({Black should play} 16... Qd7 $15) 17. g4 {[%emt 0:01:23]} ({White should try} 17. f3 $11) 17... Be6 $15 {[%emt 0:03:58]} 18. b3 {[%emt 0:00:46]} Qd7 {[%emt 0:05:33]} (18... Kg7 $15) 19. h3 $14 {[%emt 0:02:12]} Kg7 {[%emt 0:03:40]} 20. f3 {[%emt 0:00:28]} h5 {[%emt 0:00:46]} 21. Kg2 {[%emt 0:00:13]} Rh8 {[%emt 0:01:22]} 22. Qe2 {[%emt 0:00:11]} Rh7 {[%emt 0:00:57]} 23. Rh1 {[%emt 0:00:25]} Rbh8 {[%emt 0:00:31]} 24. Rag1 {[%emt 0:00:27]} f6 {[%emt 0:06:04]} 25. Nf1 {[%emt 0:01:55]} hxg4 {[%emt 0:00:48]} 26. hxg4 {[%emt 0:00:07]} Kf7 {[%emt 0:04:06][%cal Bg7f7,Bf7e8,Be8d8,Bd8c7,Bc7b7][%mdl 32]} 27. Ng3 {[%emt 0:01:04]} Ke8 {[%emt 0:01:23]} 28. Rxh7 {[%emt 0:00:37]} (28. Nf5 Bf8 29. Qd1 Kd8 30. Rxh7 Rxh7 31. Rh1) 28... Rxh7 {[%emt 0:00:04]} 29. Rh1 {[%emt 0:00:05]} Rxh1 {[%emt 0:02:41]} 30. Kxh1 {[%emt 0:00:06]} Bf8 {[%emt 0:03:39]} 31. Kg2 {[%emt 0:05:01]} a5 {[%emt 0:01:09]} 32. Qd3 {[%emt 0:00:10]} Kd8 {[%emt 0:01:22]} 33. Bf2 {[%emt 0:01:06]} Kc7 {[%emt 0:00:35]} 34. Nf1 {[%emt 0:00:08]} (34. Nf5 Qh7 35. Ne3 Kc6 36. Qd2) 34... Be7 {[%emt 0:00:32]} 35. Ne3 {[%emt 0:00:08]} (35. Qd1 {is interesting.} Qe8 36. Ne3 Kc6 37. Nd5) 35... Kb7 {[%emt 0:00:34]} 36. Qd1 {[%emt 0:00:17]} Bd8 {[%emt 0:01:52]} 37. Qh1 {[%emt 0:00:10]} Qf7 {[%emt 0:01:16]} 38. Qh8 {[%emt 0:01:25]} Qg8 {[%emt 0:00:31]} 39. Qh6 {[%emt 0:04:10]} Bf7 {[%emt 0:01:07][%cal Be6f7,Bf7g6,Bg6h7][%mdl 32]} 40. Kf1 {[%emt 0:12:00][%cal Bg2f1,Bf1e2,Be2d3][%mdl 32]} Kc6 {[%emt 0:00:23]} 41. Ke2 {[%emt 0:00:06]} Kb7 {[%emt 0:01:04]} 42. Kd3 {[%emt 0:00:18]} Kc6 {[%emt 0:00:16]} 43. Bg3 {[%emt 0:01:25]} Kd7 {[%emt 0:01:03]} 44. Be1 {[%emt 0:02:21]} Bg6 {[%emt 0:00:43]} 45. Nd5 {[%emt 0:00:58]} Be7 {[%emt 0:00:43]} 46. c3 {[%emt 0:02:29] White has more active pieces.} (46. Qh2 $14) 46... Qh7 $11 {[%emt 0:00:32] The position is equal.} 47. Qxh7 {[%emt 0:00:39]} Bxh7 {[%emt 0:00:01]} 48. cxb4 {[%emt 0:02:06]} axb4 {[%emt 0:00:20] Weighted Error Value: White=0.10 (very precise) /Black=0.09 (flawless)   Mistake:       	White=2     	Black=2      Inaccurate:     	White=3     	Black=2      OK:         	White=14    	Black=16     Best:        	---       	Black=1} 1/2-1/2

[Event "FIDE World School-ch O-17 2025"]
[Site "Vrnjacka Banja"]
[Date "2025.03.22"]
[Round "3.5"]
[White "Gusev, Mikhail"]
[Black "Adilbekuly, Altair"]
[Result "1/2-1/2"]
[Annotator "TA"]
[ECO "B32"]
[WhiteElo "2250"]
[BlackElo "1628"]
[PlyCount "121"]
[EventDate "2025.03.19"]
[EventType "swiss"]
[EventCountry "SRB"]
[SourceTitle "playchess.com"]
[Source "ChessBase"]
[SourceQuality "1"]
[TimeControl "5400+30"]

{[%evp 19,121,56,62,33,34,28,35,35,42,39,33,-34,-37,-122,-136,-137,-118,-140,-139,-153,-147,-181,-185,-184,-140,-140,-100,-105,-98,-108,-104,-105,-94,-97,-107,-114,-81,-63,-40,-98,-20,-22,-18,-22,-13,-14,0,-43,-30,-54,-43,-45,-27,-25,-20,-20,-22,-25,-23,-22,0,0,0,-26,0,0,0,-31,0,-11,-6,-15,0,0,0,-53,0,-8,0,-74,0,-57,-55,-51,-18,-16,0,-8,-6,-51,-51,-51,-51,-51,-51,-51,0,0,0,0,0,0,0,-202]} 1. e4 {[%emt 0:00:37]} c5 {[%emt 0:00:46]} 2. Nf3 {[%emt 0:00:03][%cal Bg1f3,Bf3d4,Bd4b5,Bb5a3,Ba3c2][%mdl 32]} Nc6 {[%emt 0:00:05]} 3. d4 {[%emt 0:00:19]} cxd4 {[%emt 0:00:04]} 4. Nxd4 {[%emt 0:00:05]} e5 {[%emt 0:00:06]} 5. Nb5 {[%emt 0:00:04]} d6 {[%emt 0:00:03]} 6. N1c3 {[%emt 0:00:09]} a6 {[%emt 0:00:05]} 7. Na3 {[%emt 0:00:06]} b5 {[%emt 0:00:12]} 8. Nd5 {[%emt 0:00:38]} Be7 {[%emt 0:00:26]} 9. c4 {[%emt 0:11:52]} b4 {[%emt 0:00:10]} 10. Nc2 {[%emt 0:00:01]} Rb8 {[%emt 0:00:21]} 11. Qf3 $146 {[%emt 0:03:06] White is more active. B32: Sicilian: Löwenthal and Kalashnikov Variations.} (11. Bd2 Nf6 12. Ncxb4 Nd4 13. f3 Nxd5 14. Nxd5 Rxb2 15. Bc3 Rb8 16. Bxd4 exd4 17. Qxd4 O-O 18. Bd3 Qa5+ {1-0 Myagmarsuren,E (2296)-Buksa,N (2400) Titled Tuesday intern op 25th Feb Early blitz 2025 (11)}) 11... Nf6 {[%emt 0:07:18]} 12. Nxe7 {[%emt 0:00:34]} Qxe7 {[%emt 0:01:40]} 13. Bg5 {[%emt 0:00:27] White is slightly better.} Be6 {[%emt 0:04:00]} 14. b3 {[%emt 0:01:31]} a5 {[%emt 0:03:01]} 15. Rd1 {[%emt 0:02:08]} ({White should play} 15. Be2 $14) 15... Bg4 $15 {[%emt 0:03:40]} 16. Qd3 {[%emt 0:02:31]} Bxd1 $17 {[%emt 0:01:49]} 17. Qxd1 {[%emt 0:01:27]} h6 {[%emt 0:05:30]} 18. Bxf6 {[%emt 0:05:33]} Qxf6 {[%emt 0:00:14]} 19. Qd5 {[%emt 0:02:12]} Rc8 {[%emt 0:02:25]} 20. Be2 {[%emt 0:01:25]} O-O {[%emt 0:02:44]} 21. O-O {[%emt 0:00:31]} Qe6 {[%emt 0:13:39] Dodges Bg4} 22. Qd3 {[%emt 0:02:56]} Nd4 {[%emt 0:16:59]} 23. Nxd4 {[%emt 0:00:47]} exd4 {[%emt 0:00:05]} 24. Qxd4 {[%emt 0:01:16]} Qe5 {[%emt 0:00:14]} 25. Rd1 {[%emt 0:02:27]} Qxd4 {[%emt 0:12:41]} 26. Rxd4 {[%emt 0:01:43][%mdl 4096] Endgame KRR-KRB} Rfe8 {[%emt 0:00:15]} 27. Bd3 {[%emt 0:02:51]} Rc6 {[%emt 0:01:01]} 28. f4 {[%emt 0:01:22]} f6 {[%emt 0:05:57]} 29. Kf2 {[%emt 0:01:37] [#]} (29. Rd5 $15) 29... Kf7 {[%emt 0:02:46]} ({Better is} 29... Rd8 $1 $17) 30. Rd5 $11 {[%emt 0:01:46]} Ra8 {[%emt 0:00:10]} 31. Ke3 {[%emt 0:00:15]} Ke6 {[%emt 0:03:34]} 32. Rb5 {[%emt 0:00:28]} Ra7 {[%emt 0:02:47] Prevents Rb7.} 33. Kd4 {[%emt 0:02:38]} Rcc7 {[%emt 0:02:48]} 34. h4 {[%emt 0:05:28]} Rcb7 {[%emt 0:01:32]} 35. Rd5 {[%emt 0:00:10]} a4 {[%emt 0:01:16]} 36. Bc2 {[%emt 0:00:18]} axb3 {[%emt 0:01:24]} 37. Bxb3 {[%emt 0:00:10]} Ke7 {[%emt 0:01:24]} 38. g4 {[%emt 0:02:10]} Rc7 {[%emt 0:00:55]} 39. h5 {[%emt 0:00:42]} Rab7 {[%emt 0:01:28]} 40. Ra5 {[%emt 0:04:43]} Ra7 {[%emt 0:01:10]} 41. Rb5 {[%emt 0:00:23]} Rab7 {[%emt 0:00:09]} 42. Rd5 {[%emt 0:00:03]} Rd7 {[%emt 0:02:13]} 43. g5 {[%emt 0:02:38]} ({Avoid the trap} 43. Rb5 $2 Rxb5 44. cxb5 Rc7 $17) 43... Rdc7 {[%emt 0:01:11]} 44. gxf6+ {[%emt 0:02:18]} gxf6 {[%emt 0:00:11]} 45. Ra5 {[%emt 0:02:18]} Ra7 {[%emt 0:00:06]} 46. Rf5 {[%emt 0:00:17]} Rab7 {[%emt 0:01:13]} 47. Rd5 {[%emt 0:00:30]} (47. Ra5 $11) 47... Ra7 {[%emt 0:00:43]} (47... Rb8 $15) 48. Rb5 {[%emt 0:03:52]} Rab7 {[%emt 0:00:04]} 49. Rf5 {[%emt 0:00:05]} (49. Rd5 $11) 49... Ra7 {[%emt 0:00:07]} (49... Rb8 $17) 50. e5 {[%emt 0:08:08]} (50. Rb5 $11) 50... dxe5+ $15 {[%emt 0:00:22]} 51. fxe5 {[%emt 0:00:01]} fxe5+ {[%emt 0:00:18]} 52. Rxe5+ {[%emt 0:00:04]} Kf6 {[%emt 0:00:15]} 53. Rb5 {[%emt 0:00:40]} Rab7 {[%emt 0:00:28]} 54. Kd5 {[%emt 0:02:49]} Ke7 $1 {[%emt 0:01:49]} 55. Rxb7 {[%emt 0:02:54]} Rxb7 {[%emt 0:00:06] KR-KB} 56. Kc6 {[%emt 0:00:12]} Rd7 {[%emt 0:00:54]} 57. c5 $1 {[%emt 0:00:17]} Kd8 {[%emt 0:00:17]} (57... Rd2 $15) 58. Kb6 $11 {[%emt 0:00:50] The position is equal.} Rd3 {[%emt 0:00:47]} 59. c6 {[%emt 0:00:51] [#] c7+ would now be deadly.} Rc3 {[%emt 0:00:08]} 60. Kb7 {[%emt 0:00:20]} Rc1 {[%emt 0:00:12]} 61. Bd5 $2 {[%emt 0:01:12] Whites escaped into a draw.   Weighted Error Value: White=0.18 (very precise) /Black=0.15 (very precise)   Loses game:     	White=1     	---        Mistake:       	White=6     	Black=4      Inaccurate:     	White=4     	Black=3      OK:         	White=13    	Black=13     Best:        	White=3     	Black=3      Strong:       	White=1     	Black=1} (61. Bd1 $11 {and White has nothing to worry.}) 1/2-1/2

[Event "FIDE World School-ch O-17 2025"]
[Site "Vrnjacka Banja"]
[Date "2025.03.22"]
[Round "3.6"]
[White "Jovanovic, Darko A"]
[Black "Topuz, Mirac Melih"]
[Result "0-1"]
[Annotator "NA RC"]
[ECO "D02"]
[WhiteElo "1894"]
[BlackElo "2113"]
[PlyCount "58"]
[EventDate "2025.03.19"]
[EventType "swiss"]
[EventCountry "SRB"]
[SourceTitle "playchess.com"]
[Source "ChessBase"]
[SourceQuality "1"]
[TimeControl "5400+30"]

1. d4 {[%emt 0:00:03]} d5 {[%emt 0:04:33]} 2. Bf4 {[%emt 0:00:12]} c5 {[%emt 0:00:35]} 3. e3 {[%emt 0:00:25]} Nc6 {[%emt 0:00:02]} 4. c3 {[%emt 0:00:22]} Qb6 {[%emt 0:00:01]} 5. Qc2 {[%emt 0:02:49]} Nf6 {[%emt 0:00:18]} 6. Nf3 {[%emt 0:00:19]} g6 {[%emt 0:00:01]} 7. Nbd2 {[%emt 0:00:57]} Bg7 {[%emt 0:00:37]} 8. h3 {[%emt 0:02:01]} O-O {[%emt 0:00:22]} 9. Be2 {[%emt 0:01:27]} Bf5 {[%emt 0:01:04]} 10. dxc5 {[%emt 0:01:50]} Qxc5 {[%emt 0:00:50]} 11. Qb3 {[%emt 0:03:48]} Ne4 {[%emt 0:07:21]} 12. O-O {[%emt 0:20:41]} (12. g4 $11 Nxd2 13. Nxd2) 12... e5 $15 {[%emt 0:08:24]} 13. Bh2 {[%emt 0:01:28]} Nd6 {[%emt 0:05:45]} 14. Rac1 {[%emt 0:03:23]} Rfc8 {[%emt 0:11:22]} 15. Rfe1 {[%emt 0:09:01]} b5 {[%emt 0:20:42]} 16. Bf1 {[%emt 0:04:45]} h6 {[%emt 0:05:06]} 17. Qd1 {[%emt 0:08:38]} Rd8 {[%emt 0:01:08]} 18. b3 {[%emt 0:09:05]} a5 {[%emt 0:07:36]} 19. c4 {[%emt 0:09:00]} dxc4 {[%emt 0:00:42]} 20. bxc4 {[%emt 0:00:12]} b4 {[%emt 0:00:18]} 21. g4 {[%emt 0:06:10]} Be6 {[%emt 0:03:04]} 22. Nb3 {[%emt 0:04:58]} Qa7 {[%emt 0:00:11]} 23. Qc2 {[%emt 0:00:16]} a4 {[%emt 0:00:16]} 24. Nbd2 {[%emt 0:00:11]} Qc5 {[%emt 0:00:14]} 25. Red1 {[%emt 0:02:03]} f5 {[%emt 0:04:33]} 26. gxf5 {[%emt 0:03:01]} Bxf5 {[%emt 0:04:07]} 27. Bd3 {[%emt 0:00:26]} b3 {[%emt 0:00:25]} 28. axb3 {[%emt 0:02:32]} Nb4 {[%emt 0:00:04]} 29. Qc3 {[%emt 0:00:30]} Nxd3 {[%emt 0:01:02]} 0-1

[Event "FIDE World School-ch O-17 2025"]
[Site "Vrnjacka Banja"]
[Date "2025.03.22"]
[Round "3.7"]
[White "Kazhmuratov, Altair"]
[Black "Guntaka, Aayansh"]
[Result "1-0"]
[Annotator "NA RC"]
[ECO "B23"]
[WhiteElo "1971"]
[BlackElo "1866"]
[PlyCount "129"]
[EventDate "2025.03.19"]
[EventType "swiss"]
[EventCountry "SRB"]
[SourceTitle "playchess.com"]
[Source "ChessBase"]
[SourceQuality "1"]
[TimeControl "5400+30"]

1. e4 {[%emt 0:02:35]} c5 {[%emt 0:00:05]} 2. Nc3 {[%emt 0:00:54]} e6 {[%emt 0:00:15]} 3. g3 {[%emt 0:00:21]} Nc6 {[%emt 0:01:00]} 4. Bg2 {[%emt 0:00:09]} Nf6 {[%emt 0:01:06]} 5. Nge2 {[%emt 0:00:11]} d5 {[%emt 0:01:31]} 6. O-O {[%emt 0:05:37]} d4 {[%emt 0:04:38]} 7. Nb1 {[%emt 0:00:12]} Be7 {[%emt 0:03:06]} 8. d3 {[%emt 0:00:41]} O-O {[%emt 0:00:42]} 9. h3 {[%emt 0:00:56]} e5 {[%emt 0:02:18]} 10. Nd2 {[%emt 0:02:46]} Be6 {[%emt 0:02:54]} 11. f4 {[%emt 0:01:00]} Ne8 {[%emt 0:00:45]} 12. f5 {[%emt 0:10:03]} Bd7 {[%emt 0:00:24]} 13. Nf3 $15 {[%emt 0:00:05]} Nd6 {[%emt 0:01:04]} 14. g4 {[%emt 0:01:27]} f6 {[%emt 0:04:29]} 15. h4 {[%emt 0:00:48]} Kf7 {[%emt 0:04:05]} 16. g5 {[%emt 0:04:22]} Qb6 {[%emt 0:02:21]} 17. Ng3 {[%emt 0:09:38]} Ke8 {[%emt 0:01:26]} 18. h5 {[%emt 0:10:07]} fxg5 {[%emt 0:22:13]} 19. Nxg5 {[%emt 0:14:14]} h6 {[%emt 0:04:46]} 20. Ne6 {[%emt 0:05:14]} Rf7 {[%emt 0:01:34]} 21. Qg4 {[%emt 0:00:48]} Bf6 {[%emt 0:00:24]} 22. Qg6 {[%emt 0:07:28]} Ke7 {[%emt 0:04:50]} 23. Bh3 {[%emt 0:02:41]} Nd8 {[%emt 0:00:31]} 24. b3 {[%emt 0:02:25]} Nxe6 {[%emt 0:02:51]} 25. fxe6 {[%emt 0:00:10]} Bxe6 {[%emt 0:00:06]} 26. Bxe6 {[%emt 0:01:40]} Kxe6 {[%emt 0:00:28]} 27. Bd2 {[%emt 0:00:38]} a5 {[%emt 0:03:09]} 28. a4 {[%emt 0:00:18]} Raf8 {[%emt 0:01:15]} 29. Rf3 {[%emt 0:00:39]} Kd7 {[%emt 0:01:12]} 30. Raf1 {[%emt 0:00:52]} Qd8 {[%emt 0:00:41]} 31. Qg4+ {[%emt 0:02:39]} Kc6 {[%emt 0:00:54]} 32. Qe6 {[%emt 0:00:36]} b6 {[%emt 0:00:35]} 33. Nf5 {[%emt 0:01:31]} Kc7 {[%emt 0:00:38]} 34. Kh1 {[%emt 0:00:58]} Nxf5 {[%emt 0:02:13]} 35. Rxf5 {[%emt 0:00:11]} Qd6 {[%emt 0:00:50]} 36. Rxe5 {[%emt 0:05:38]} Bxe5 {[%emt 0:06:18]} 37. Rxf7+ {[%emt 0:00:01]} Rxf7 {[%emt 0:01:34]} 38. Qxf7+ {[%emt 0:00:01]} Kb8 {[%emt 0:00:17]} 39. Kg2 {[%emt 0:00:28]} Kc8 {[%emt 0:04:20]} 40. Kf3 {[%emt 0:00:25]} Kd8 {[%emt 0:07:21]} 41. Kg4 {[%emt 0:00:52]} Bh2 {[%emt 0:05:23]} 42. Qd5 {[%emt 0:02:40]} Qxd5 {[%emt 0:01:41]} 43. exd5 {[%emt 0:00:02]} Kd7 {[%emt 0:00:58]} 44. Bf4 {[%emt 0:00:38]} Bg1 {[%emt 0:00:20]} 45. Kf5 {[%emt 0:00:25]} Be3 {[%emt 0:00:11]} 46. Be5 {[%emt 0:00:09]} Bg5 {[%emt 0:00:51]} 47. Bxg7 {[%emt 0:01:20]} Kd6 {[%emt 0:00:07]} 48. Ke4 {[%emt 0:00:13]} Kd7 {[%emt 0:00:24]} 49. Be5 {[%emt 0:00:15]} Be7 {[%emt 0:00:51]} 50. Bf4 {[%emt 0:00:21]} Bf8 {[%emt 0:00:08]} 51. Kf5 {[%emt 0:00:08]} Bg7 {[%emt 0:01:09]} 52. Kg6 {[%emt 0:00:10]} Bf8 {[%emt 0:00:04]} 53. Bxh6 {[%emt 0:00:08]} Be7 {[%emt 0:00:18]} 54. Bg7 {[%emt 0:00:12]} Kd6 {[%emt 0:00:28]} 55. h6 {[%emt 0:00:06]} Kxd5 {[%emt 0:00:13]} 56. h7 {[%emt 0:00:05]} Ke6 {[%emt 0:00:27]} 57. h8=Q {[%emt 0:00:06]} Kd7 {[%emt 0:00:06]} 58. Kf7 {[%emt 0:00:07]} Bd6 {[%emt 0:00:04]} 59. Qe8+ {[%emt 0:00:08]} Kc7 {[%emt 0:00:04]} 60. Ke6 {[%emt 0:00:05]} Bg3 {[%emt 0:00:04]} 61. Qd7+ {[%emt 0:00:09]} Kb8 {[%emt 0:00:23]} 62. Kd5 {[%emt 0:00:10]} Bf4 {[%emt 0:00:35]} 63. Kc6 {[%emt 0:00:06]} Bc7 {[%emt 0:00:04]} 64. Qxc7+ {[%emt 0:00:10]} Ka8 {[%emt 0:00:03]} 65. Qb7# {[%emt 0:00:04]} 1-0

[Event "FIDE World School-ch O-17 2025"]
[Site "Vrnjacka Banja"]
[Date "2025.03.22"]
[Round "3.8"]
[White "Brankovic, Uros"]
[Black "Senevirathne, D C B K"]
[Result "0-1"]
[Annotator "NA RC"]
[ECO "B22"]
[WhiteElo "1966"]
[BlackElo "1840"]
[PlyCount "110"]
[EventDate "2025.03.19"]
[EventType "swiss"]
[EventCountry "SRB"]
[SourceTitle "playchess.com"]
[Source "ChessBase"]
[SourceQuality "1"]
[TimeControl "5400+30"]

1. e4 {[%emt 0:00:02]} c5 {[%emt 0:00:07]} 2. c3 {[%emt 0:00:05]} Nc6 {[%emt 0:00:32]} 3. d4 {[%emt 0:00:07]} cxd4 {[%emt 0:00:25]} 4. cxd4 {[%emt 0:00:07]} d6 {[%emt 0:00:50]} 5. Nc3 {[%emt 0:00:45]} g6 {[%emt 0:00:37]} 6. Nf3 {[%emt 0:03:26]} Bg7 {[%emt 0:00:11]} 7. Be3 {[%emt 0:00:56]} Nf6 {[%emt 0:03:04]} 8. h3 {[%emt 0:00:29]} O-O {[%emt 0:01:25]} 9. Be2 {[%emt 0:02:04]} e6 {[%emt 0:02:47]} 10. O-O {[%emt 0:04:09]} d5 {[%emt 0:02:31]} 11. e5 {[%emt 0:01:38]} Nd7 {[%emt 0:03:14]} 12. Ne1 {[%emt 0:01:38]} Ndxe5 {[%emt 0:00:42]} 13. dxe5 {[%emt 0:02:13]} d4 {[%emt 0:00:37]} 14. f4 {[%emt 0:06:58]} dxe3 {[%emt 0:03:01]} 15. Qxd8 {[%emt 0:02:48]} Rxd8 {[%emt 0:00:15]} 16. Nf3 {[%emt 0:00:15]} f6 {[%emt 0:02:15]} 17. Rad1 $17 {[%emt 0:07:13]} (17. exf6 $1 $15 Bxf6 18. Rfd1) 17... Bd7 {[%emt 0:12:51]} 18. Bc4 {[%emt 0:06:41]} Na5 {[%emt 0:07:48]} 19. Be2 {[%emt 0:08:40]} fxe5 {[%emt 0:05:24]} 20. fxe5 {[%emt 0:12:23]} Bc6 {[%emt 0:00:59]} 21. Ng5 {[%emt 0:13:20]} Bxe5 {[%emt 0:06:29]} 22. Bg4 {[%emt 0:01:09]} Rxd1 {[%emt 0:02:48]} 23. Rxd1 {[%emt 0:01:26]} Re8 {[%emt 0:02:24]} 24. Bxe6+ {[%emt 0:05:48]} Kg7 {[%emt 0:01:40]} 25. Bg4 {[%emt 0:00:27]} Nc4 {[%emt 0:01:27]} 26. Ne2 {[%emt 0:06:56]} h5 {[%emt 0:01:49]} 27. Bd7 {[%emt 0:00:55]} Nxb2 {[%emt 0:01:37]} 28. Bxc6 {[%emt 0:00:32]} bxc6 {[%emt 0:00:25]} 29. Rd7+ {[%emt 0:00:26]} Kf6 {[%emt 0:03:28]} 30. h4 {[%emt 0:00:34]} Re7 {[%emt 0:02:11]} 31. Rd8 {[%emt 0:01:54]} Bc7 {[%emt 0:01:52]} 32. Rd4 {[%emt 0:00:52]} Kf5 {[%emt 0:02:59]} 33. g3 {[%emt 0:01:13]} Be5 {[%emt 0:03:14]} 34. Rd8 {[%emt 0:01:05]} Kg4 {[%emt 0:00:07]} 35. Kg2 {[%emt 0:00:57]} c5 {[%emt 0:02:31]} 36. Rf8 {[%emt 0:00:19]} Bxg3 {[%emt 0:00:53]} 37. Nf3 {[%emt 0:02:46]} Bc7 {[%emt 0:01:16]} 38. Rf6 {[%emt 0:00:42]} Rg7 {[%emt 0:02:34]} 39. Nc3 {[%emt 0:00:39]} Nd3 {[%emt 0:01:30]} 40. Ne2 {[%emt 0:04:25]} Nf4+ {[%emt 0:00:09]} 41. Nxf4 {[%emt 0:00:10]} Bxf4 {[%emt 0:00:03]} 42. Rc6 {[%emt 0:00:18]} Rc7 {[%emt 0:02:49]} 43. Rxg6+ {[%emt 0:00:43]} Kf5 {[%emt 0:00:05]} 44. Rg8 {[%emt 0:00:12]} c4 {[%emt 0:00:07]} 45. Nd4+ {[%emt 0:01:35]} Ke5 {[%emt 0:01:38]} 46. Nc2 {[%emt 0:00:39]} Ke4 {[%emt 0:01:02]} 47. Rd8 {[%emt 0:00:20]} Rg7+ {[%emt 0:00:41]} 48. Kf1 {[%emt 0:00:07]} Be5 {[%emt 0:00:50]} 49. Ne1 {[%emt 0:00:32]} Rf7+ {[%emt 0:00:32]} 50. Ke2 {[%emt 0:00:04]} Rf2+ {[%emt 0:00:23]} 51. Kd1 {[%emt 0:00:03]} Rxa2 {[%emt 0:00:13]} 52. Rd7 {[%emt 0:01:04]} e2+ {[%emt 0:00:15]} 53. Kc1 {[%emt 0:00:04]} c3 {[%emt 0:00:19]} 54. Nd3 {[%emt 0:00:43]} Ra1+ {[%emt 0:00:10]} 55. Kc2 {[%emt 0:00:58]} e1=Q {[%emt 0:00:06]} 0-1